[Event "15th Deltalift Open 2018"]
[Site "Halmstad"]
[Date "2018.05.10"]
[Round "2"]
[White "Mattsson, Michael"]
[Black "Lindh, Fredrik"]
[Result "0-1"]
[ECO "B31"]
[WhiteElo "2020"]
[BlackElo "2296"]
[Annotator "NA"]
[PlyCount "108"]
[EventDate "2018.??.??"]
[EventType "swiss"]
[EventCountry "SWE"]
[SourceTitle "playchess.com"]
[Source "ChessBase"]
[SourceQuality "1"]
[TimeControl "1800+12"]

1. e4 {[%emt 0:00:07]} c5 {[%emt 0:00:09]} 2. Nf3 {[%emt 0:01:33]} Nc6 {[%emt 0:00:09]} 3. Bb5 {[%emt 0:00:19]} g6 {[%emt 0:00:34]} 4. Bxc6 {[%emt 0:00:35]} bxc6 {[%emt 0:00:10]} 5. O-O {[%emt 0:02:31]} Bg7 {[%emt 0:00:19]} 6. Re1 {[%emt 0:02:47]} d6 {[%emt 0:01:10]} 7. h3 {[%emt 0:00:04] B31: Sicilian: 2...Nc6 3 Bb5 g6} Nh6 {[%emt 0:00:05]} 8. d3 {[%emt 0:01:41]} O-O {[%emt 0:01:16]} 9. Nc3 {[%emt 0:00:12]} f6 {[%emt 0:01:35]} (9... e5 10. a3 f5 11. b4 cxb4 12. axb4 Nf7 13. Bd2 d5 14. Qb1 fxe4 15. dxe4 d4 16. Na4 g5 17. Nc5 g4 18. hxg4 Bxg4 {½-½ (58) Grigoriants,S (2576)-Nakamura,H (2786) chess.com INT 2017}) 10. Be3 {[%emt 0:00:43]} Nf7 {[%emt 0:00:05]} 11. Qd2 {[%emt 0:00:25]} e5 {[%emt 0:00:42]} 12. Nh2 {[%emt 0:03:59]} f5 {[%emt 0:03:25]} 13. f3 $146 {[%emt 0:00:11]} ({Predecessor:} 13. exf5 Bxf5 14. Ne4 d5 15. Bg5 Nxg5 16. Nxg5 h6 {0-1 (34) Li Ying,P (2200)-Manik,M (2510) Mallorca 2004}) 13... f4 {[%emt 0:00:40]} 14. Bf2 {[%emt 0:00:02]} Rb8 {[%emt 0:02:21]} 15. b3 {[%emt 0:00:29]} Ng5 {[%emt 0:00:45]} 16. Kh1 {[%emt 0:00:34]} Ne6 {[%emt 0:02:29]} 17. Nd1 {[%emt 0:01:53]} Bf6 {[%emt 0:01:00]} 18. Ng4 {[%emt 0:01:22]} Bh4 {[%emt 0:00:29]} 19. c3 {[%emt 0:00:27]} Bxf2 {[%emt 0:00:21]} 20. Qxf2 {[%emt 0:00:39]} h5 {[%emt 0:05:18]} 21. Nh2 {[%emt 0:00:10]} Qa5 {[%emt 0:00:04]} 22. Rb1 {[%emt 0:02:12]} Ba6 {[%emt 0:01:51]} 23. Qd2 {[%emt 0:03:05]} Rfd8 {[%emt 0:02:58]} 24. Nf1 {[%emt 0:02:58]} c4 {[%emt 0:00:49]} 25. dxc4 {[%emt 0:00:57]} Bxc4 {[%emt 0:00:22]} 26. Qf2 {[%emt 0:01:40]} Nc5 {[%emt 0:02:39]} 27. b4 {[%emt 0:04:43]} Qa6 {[%emt 0:01:07]} 28. Nb2 {[%emt 0:01:22]} Bxa2 $2 {[%emt 0:01:15]} (28... Nd3 $15 {keeps the upper hand.} 29. Nxd3 Bxd3) 29. Rbd1 {[%emt 0:03:15]} Ne6 {[%emt 0:00:53]} 30. Ra1 {[%emt 0:00:07]} c5 {[%emt 0:00:16]} 31. Nd1 {[%emt 0:00:31]} cxb4 {[%emt 0:00:11]} 32. cxb4 {[%emt 0:00:22]} Rxb4 {[%emt 0:00:17]} 33. Qxa2 {[%emt 0:00:47]} Qxa2 {[%emt 0:00:05]} 34. Rxa2 {[%emt 0:00:02]} Rb1 {[%emt 0:00:05]} 35. Nd2 {[%emt 0:00:13]} Rc1 {[%emt 0:00:09]} 36. Nb3 {[%emt 0:00:16]} (36. Rxa7 $18 Nd4 37. Rf1) 36... Rb1 {[%emt 0:00:04]} 37. Nd2 {[%emt 0:00:25]} Rc1 {[%emt 0:00:02]} 38. Rf1 {[%emt 0:01:16]} Rb8 {[%emt 0:00:35]} 39. Nf2 {[%emt 0:00:18]} Rxf1+ {[%emt 0:00:32]} 40. Nxf1 {[%emt 0:00:02]} Rb1 {[%emt 0:00:04]} 41. Kg1 {[%emt 0:00:58]} Nd4 {[%emt 0:00:25]} 42. Rd2 {[%emt 0:00:30]} (42. Nd3 $18 {and White stays clearly on top.}) 42... a5 {[%emt 0:01:20]} (42... Ra1 $14) 43. Rd1 {[%emt 0:00:01]} Rxd1 {[%emt 0:00:18]} 44. Nxd1 {[%emt 0:00:02]} a4 {[%emt 0:00:04]} 45. Nc3 {[%emt 0:00:13]} a3 {[%emt 0:00:11]} 46. Kf2 {[%emt 0:00:35]} Nc2 {[%emt 0:00:14]} 47. Nd2 {[%emt 0:00:22]} Nb4 {[%emt 0:00:02]} 48. Nc4 {[%emt 0:01:08]} a2 {[%emt 0:00:22]} 49. Nxa2 $11 {[%emt 0:00:02]} Nxa2 {[%emt 0:00:03]} 50. Nxd6 {[%emt 0:00:02]} Kg7 {[%emt 0:00:10]} 51. g3 {[%emt 0:00:27]} fxg3+ {[%emt 0:00:15]} 52. Kxg3 {[%emt 0:00:02]} Nc3 {[%emt 0:00:03]} 53. Kh4 {[%emt 0:00:34]} Ne2 {[%emt 0:00:51]} 54. Ne8+ {[%emt 0:00:41]} Kh6 {[%emt 0:00:17]} 0-1

[Event "15th Deltalift Open 2018"]
[Site "Halmstad"]
[Date "2018.05.10"]
[Round "2"]
[White "Hakansson, Stefan"]
[Black "Silseth, Simon"]
[Result "1/2-1/2"]
[ECO "A45"]
[WhiteElo "2010"]
[BlackElo "2239"]
[Annotator "NA"]
[PlyCount "52"]
[EventDate "2018.??.??"]
[EventType "swiss"]
[EventCountry "SWE"]
[SourceTitle "playchess.com"]
[Source "ChessBase"]
[SourceQuality "1"]
[TimeControl "1800+12"]

1. d4 {[%emt 0:00:12]} Nf6 {[%emt 0:01:17]} 2. Bg5 {[%emt 0:00:20]} e6 {[%emt 0:00:25]} 3. e4 {[%emt 0:00:14]} h6 {[%emt 0:00:19]} 4. Bxf6 {[%emt 0:00:12]} Qxf6 {[%emt 0:00:14]} 5. c3 {[%emt 0:00:04]} b6 {[%emt 0:01:21]} 6. Qf3 {[%emt 0:04:31]} Qe7 {[%emt 0:00:58]} 7. Nd2 {[%emt 0:00:55]} Bb7 {[%emt 0:00:05]} 8. Bd3 {[%emt 0:00:25]} d6 {[%emt 0:00:26]} 9. Ne2 {[%emt 0:03:26]} Nd7 {[%emt 0:00:27]} 10. O-O {[%emt 0:04:05]} g6 {[%emt 0:00:05]} 11. Qg3 {[%emt 0:00:11]} Bg7 {[%emt 0:00:14]} 12. f4 {[%emt 0:00:05]} Nf6 {[%emt 0:00:11]} 13. e5 {[%emt 0:02:12]} Nd7 {[%emt 0:00:16]} 14. Be4 {[%emt 0:03:56]} Bxe4 15. Nxe4 {[%emt 0:00:02]} d5 {[%emt 0:01:59]} 16. Nd2 h5 {[%emt 0:01:10]} 17. Nf3 {[%emt 0:03:57]} Nb8 {[%emt 0:01:18]} 18. Ng5 {[%emt 0:01:07]} Nc6 {[%emt 0:00:18]} 19. Qd3 {[%emt 0:03:35]} Qd7 {[%emt 0:00:31]} 20. b4 {[%emt 0:01:01]} Ne7 {[%emt 0:00:12]} 21. a4 {[%emt 0:00:17]} a5 {[%emt 0:01:40]} 22. b5 {[%emt 0:00:14]} Nf5 {[%emt 0:00:19]} 23. Ng3 {[%emt 0:00:04]} Ne7 {[%emt 0:04:15]} 24. Rac1 {[%emt 0:01:53]} h4 {[%emt 0:01:26]} 25. Ne2 {[%emt 0:02:42]} c6 {[%emt 0:00:29]} 26. Rb1 {[%emt 0:00:13]} c5 {[%emt 0:00:48]} 1/2-1/2

[Event "15th Deltalift Open 2018"]
[Site "Halmstad"]
[Date "2018.05.10"]
[Round "2"]
[White "Bergre, Joachim"]
[Black "Linusson, Pelle"]
[Result "0-1"]
[ECO "A37"]
[WhiteElo "1990"]
[BlackElo "2211"]
[Annotator "ChessBase"]
[PlyCount "65"]
[EventDate "2018.??.??"]
[EventType "swiss"]
[EventCountry "SWE"]
[SourceTitle "playchess.com"]
[Source "ChessBase"]
[SourceQuality "1"]
[TimeControl "1800+12"]

1. Nf3 {[%emt 0:00:36]} g6 {[%emt 0:01:08]} 2. c4 {[%emt 0:01:34]} Bg7 {[%emt 0:00:30]} 3. g3 {[%emt 0:00:52]} c5 {[%emt 0:00:59]} 4. Nc3 {[%emt 0:01:01]} Nc6 {[%emt 0:00:10]} 5. Bg2 {[%emt 0:00:29]} d6 {[%emt 0:00:59]} 6. O-O {[%emt 0:00:56]} e5 {[%emt 0:00:39]} 7. e4 {[%emt 0:02:05]} Nge7 {[%emt 0:00:36]} 8. d3 {[%emt 0:00:30]} O-O {[%emt 0:00:43]} 9. a3 {[%emt 0:01:11]} Rb8 {[%emt 0:00:23]} 10. Rb1 {[%emt 0:03:11]} a5 {[%emt 0:00:32]} 11. Bd2 {[%emt 0:04:41]} h6 {[%emt 0:03:24]} 12. Ne1 {[%emt 0:00:34]} Be6 {[%emt 0:00:48]} 13. Nc2 {[%emt 0:00:29]} f5 {[%emt 0:03:37]} 14. Ne3 {[%emt 0:04:13]} f4 {[%emt 0:00:29]} 15. Ned5 {[%emt 0:00:10]} g5 {[%emt 0:00:20]} 16. f3 {[%emt 0:02:53]} Nd4 {[%emt 0:07:31]} 17. Nxe7+ {[%emt 0:01:47]} Qxe7 {[%emt 0:00:03]} 18. b4 {[%emt 0:00:11]} axb4 19. axb4 {[%emt 0:00:05]} fxg3 {[%emt 0:05:34]} 20. hxg3 {[%emt 0:00:14]} Rf7 {[%emt 0:00:06]} 21. Nd5 {[%emt 0:01:14]} Qd7 {[%emt 0:00:36]} 22. bxc5 {[%emt 0:00:50]} dxc5 {[%emt 0:01:46]} 23. Bc3 {[%emt 0:02:42]} Rbf8 {[%emt 0:01:10]} 24. Bxd4 {[%emt 0:02:20]} exd4 {[%emt 0:00:03]} 25. Rb6 {[%emt 0:00:23]} Bxd5 {[%emt 0:01:38]} 26. cxd5 {[%emt 0:00:24]} Qc7 {[%emt 0:00:03]} 27. Rb5 {[%emt 0:02:10]} Qxg3 {[%emt 0:00:07]} 28. Qe1 {[%emt 0:00:04]} Qd6 {[%emt 0:00:59]} 29. Qa5 {[%emt 0:00:38]} g4 {[%emt 0:00:41]} 30. f4 {[%emt 0:02:31]} Rxf4 {[%emt 0:00:03]} 31. Rxf4 {[%emt 0:00:05]} Qxf4 {[%emt 0:00:02]} 32. Rxb7 {[%emt 0:00:10]} Be5 {[%emt 0:00:16]} 33. Bf1 {[%emt 0:00:26]} 0-1

[Event "15th Deltalift Open 2018"]
[Site "Halmstad"]
[Date "2018.05.10"]
[Round "2"]
[White "Nystrom, Jonas"]
[Black "Madebrink, Lars"]
[Result "0-1"]
[ECO "B89"]
[WhiteElo "1965"]
[BlackElo "2192"]
[Annotator "NA"]
[PlyCount "48"]
[EventDate "2018.??.??"]
[EventType "swiss"]
[EventCountry "SWE"]
[SourceTitle "playchess.com"]
[Source "ChessBase"]
[SourceQuality "1"]
[TimeControl "1800+12"]

1. e4 {[%emt 0:00:02]} c5 {[%emt 0:00:07]} 2. Nf3 {[%emt 0:00:35]} d6 {[%emt 0:00:05]} 3. d4 {[%emt 0:00:18]} cxd4 {[%emt 0:00:10]} 4. Nxd4 {[%emt 0:00:20]} Nf6 {[%emt 0:00:05]} 5. Nc3 {[%emt 0:00:29]} Nc6 {[%emt 0:00:09]} 6. Bc4 {[%emt 0:06:57]} e6 {[%emt 0:00:11]} 7. Be3 {[%emt 0:02:27]} Be7 {[%emt 0:00:34]} 8. Qe2 {[%emt 0:00:23]} a6 {[%emt 0:00:12]} 9. f3 {[%emt 0:00:44]} h5 {[%emt 0:01:06]} 10. O-O-O {[%emt 0:01:17]} Qc7 {[%emt 0:00:29]} 11. Rhg1 {[%emt 0:04:50]} Ne5 {[%emt 0:00:20]} 12. Bb3 {[%emt 0:00:32]} b5 {[%emt 0:00:06]} 13. Bg5 {[%emt 0:04:34]} Bd7 {[%emt 0:00:28]} 14. f4 {[%emt 0:00:38]} Nc4 {[%emt 0:00:22]} 15. g4 {[%emt 0:08:32]} hxg4 {[%emt 0:00:29]} 16. Bxf6 {[%emt 0:00:43]} Bxf6 {[%emt 0:00:22]} 17. Rxg4 {[%emt 0:00:08]} Rc8 {[%emt 0:00:18]} 18. f5 {[%emt 0:03:30]} Qc5 {[%emt 0:01:36]} 19. fxe6 {[%emt 0:00:08]} fxe6 {[%emt 0:00:02]} 20. Nd5 {[%emt 0:02:48]} Bxd4 {[%emt 0:00:49]} 21. c3 {[%emt 0:00:43]} Be5 {[%emt 0:00:19]} 22. Qg2 {[%emt 0:00:29]} Rxh2 {[%emt 0:00:34]} 23. Qf3 {[%emt 0:00:20]} exd5 {[%emt 0:00:17]} 24. Rxd5 {[%emt 0:00:11]} Qe3+ {[%emt 0:00:14]} 0-1

[Event "15th Deltalift Open 2018"]
[Site "Halmstad"]
[Date "2018.05.10"]
[Round "2"]
[White "Linusson, Lasse"]
[Black "Cramling Bellon, Anna"]
[Result "1/2-1/2"]
[ECO "B20"]
[WhiteElo "1962"]
[BlackElo "2153"]
[Annotator "NA"]
[PlyCount "89"]
[EventDate "2018.??.??"]
[EventType "swiss"]
[EventCountry "SWE"]
[SourceTitle "playchess.com"]
[Source "ChessBase"]
[SourceQuality "1"]
[TimeControl "1800+12"]

1. e4 {[%emt 0:00:12]} c5 {[%emt 0:00:09]} 2. a3 {[%emt 0:00:30]} Nc6 {[%emt 0:05:19]} 3. b4 {[%emt 0:00:22]} cxb4 {[%emt 0:02:48]} 4. axb4 {[%emt 0:00:06]} Nxb4 {[%emt 0:00:29]} 5. d4 {[%emt 0:00:10]} d5 {[%emt 0:02:25]} 6. c3 {[%emt 0:00:15]} Nc6 {[%emt 0:00:06]} 7. exd5 {[%emt 0:00:07]} Qxd5 {[%emt 0:00:08]} 8. Na3 {[%emt 0:00:05]} Bf5 {[%emt 0:02:22]} 9. Nc4 {[%emt 0:00:40]} Rd8 {[%emt 0:05:44]} 10. Ne3 {[%emt 0:00:17]} Qd7 {[%emt 0:02:02]} 11. Nf3 {[%emt 0:00:29]} a6 {[%emt 0:00:53]} 12. Ba3 {[%emt 0:00:52]} e6 {[%emt 0:01:50]} 13. Bxf8 {[%emt 0:00:20]} Kxf8 {[%emt 0:00:00]} 14. Be2 {[%emt 0:00:08]} Nf6 {[%emt 0:03:05]} 15. O-O {[%emt 0:00:12]} Nd5 {[%emt 0:00:17]} 16. Qc1 {[%emt 0:00:59]} Nf4 {[%emt 0:06:14]} 17. Qa3+ {[%emt 0:00:19]} Qe7 {[%emt 0:03:34]} 18. Qb2 {[%emt 0:00:05]} Be4 {[%emt 0:01:45]} 19. Rfe1 {[%emt 0:00:16]} Bd3 {[%emt 0:00:26]} 20. Bf1 {[%emt 0:00:07]} Bxf1 {[%emt 0:00:07]} 21. Rxf1 {[%emt 0:00:15]} f6 {[%emt 0:00:41]} 22. Rfb1 {[%emt 0:00:20]} Rd7 {[%emt 0:00:10]} 23. g3 {[%emt 0:00:37]} Ng6 {[%emt 0:00:17]} 24. Re1 {[%emt 0:00:08]} Qd8 {[%emt 0:00:18]} 25. h4 {[%emt 0:00:22]} h5 {[%emt 0:00:02]} 26. c4 {[%emt 0:00:49]} Kf7 {[%emt 0:00:22]} 27. d5 {[%emt 0:00:10]} exd5 {[%emt 0:00:03]} 28. cxd5 {[%emt 0:00:04]} Nce5 {[%emt 0:00:01]} 29. Nxe5+ {[%emt 0:00:42]} Nxe5 {[%emt 0:00:01]} 30. Red1 {[%emt 0:00:50]} g6 {[%emt 0:00:23]} 31. Ra4 {[%emt 0:01:51]} Re8 {[%emt 0:00:27]} 32. Kg2 {[%emt 0:00:31]} Kg7 {[%emt 0:00:07]} 33. Rf4 {[%emt 0:02:04]} Qe7 {[%emt 0:01:13]} 34. Qb6 {[%emt 0:00:16]} Rd6 {[%emt 0:00:01]} 35. Qb4 {[%emt 0:00:42]} Rc8 {[%emt 0:00:15]} 36. Re4 {[%emt 0:01:26]} Qd7 {[%emt 0:00:09]} 37. Qb2 {[%emt 0:03:29]} b5 {[%emt 0:00:10]} 38. Qe2 {[%emt 0:00:52]} a5 {[%emt 0:00:26]} 39. f4 {[%emt 0:00:24]} Nf7 {[%emt 0:00:03]} 40. f5 {[%emt 0:01:10]} Re8 {[%emt 0:00:19]} 41. Rxe8 {[%emt 0:00:35]} Qxe8 {[%emt 0:00:01]} 42. fxg6 {[%emt 0:01:46]} Qe4+ {[%emt 0:00:06]} 43. Kh2 {[%emt 0:00:24]} Kxg6 {[%emt 0:00:10]} 44. Rf1 {[%emt 0:02:18]} Ne5 {[%emt 0:00:15]} 45. Rf4 {[%emt 0:02:38]} 1/2-1/2

[Event "15th Deltalift Open 2018"]
[Site "Halmstad"]
[Date "2018.05.10"]
[Round "3"]
[White "Sjodahl, Pontus"]
[Black "Sorensen, Hampus"]
[Result "1-0"]
[ECO "D31"]
[WhiteElo "2404"]
[BlackElo "2176"]
[Annotator "ChessBase"]
[PlyCount "87"]
[EventDate "2018.??.??"]
[EventType "swiss"]
[EventCountry "SWE"]
[SourceTitle "playchess.com"]
[Source "ChessBase"]
[SourceQuality "1"]
[TimeControl "1800+12"]

1. d4 {[%emt 0:00:00]} d5 {[%emt 0:00:02]} 2. c4 {[%emt 0:00:00]} e6 {[%emt 0:01:19]} 3. Nc3 {[%emt 0:00:00]} Bb4 {[%emt 0:00:11]} 4. a3 {[%emt 0:00:44]} Bxc3+ {[%emt 0:00:19]} 5. bxc3 {[%emt 0:00:02]} Nf6 {[%emt 0:00:16]} 6. e3 {[%emt 0:01:31]} O-O {[%emt 0:00:33]} 7. cxd5 {[%emt 0:01:07]} exd5 {[%emt 0:00:13]} 8. Bd3 {[%emt 0:00:06]} c5 {[%emt 0:00:38]} 9. Ne2 {[%emt 0:00:14]} b6 {[%emt 0:00:07]} 10. O-O {[%emt 0:01:05]} Ba6 {[%emt 0:00:34]} 11. Bxa6 {[%emt 0:02:21]} Nxa6 {[%emt 0:00:02]} 12. Qd3 {[%emt 0:01:44]} Nc7 {[%emt 0:01:21]} 13. dxc5 {[%emt 0:00:40]} bxc5 {[%emt 0:00:18]} 14. c4 {[%emt 0:00:04]} dxc4 {[%emt 0:04:47]} 15. Qxc4 {[%emt 0:00:03]} Ne6 {[%emt 0:00:06]} 16. e4 {[%emt 0:05:00]} Nd7 {[%emt 0:07:41]} 17. Be3 {[%emt 0:03:18]} Nb6 {[%emt 0:01:00]} 18. Qb5 {[%emt 0:04:36]} Qe7 {[%emt 0:01:13]} 19. Rfc1 {[%emt 0:01:46]} Rfd8 {[%emt 0:03:07]} 20. a4 {[%emt 0:04:12]} Nd4 {[%emt 0:00:26]} 21. Bxd4 {[%emt 0:00:25]} cxd4 {[%emt 0:00:01]} 22. a5 {[%emt 0:00:04]} Nd7 {[%emt 0:00:34]} 23. Nxd4 {[%emt 0:00:22]} Qxe4 {[%emt 0:00:14]} 24. Nc6 {[%emt 0:00:41]} Re8 {[%emt 0:00:05]} 25. h3 {[%emt 0:00:28]} h6 {[%emt 0:00:08]} 26. Rc4 {[%emt 0:00:43]} Qd3 {[%emt 0:01:57]} 27. Rac1 {[%emt 0:00:20]} a6 {[%emt 0:01:26]} 28. Qb7 {[%emt 0:00:18]} Nf8 {[%emt 0:02:36]} 29. Rd4 {[%emt 0:00:40]} Qa3 {[%emt 0:00:28]} 30. Rcd1 {[%emt 0:00:19]} Ne6 {[%emt 0:00:15]} 31. R4d3 {[%emt 0:00:17]} Qc5 {[%emt 0:00:34]} 32. Rd5 {[%emt 0:00:08]} Qa3 {[%emt 0:00:12]} 33. Rf5 {[%emt 0:00:26]} f6 {[%emt 0:01:32]} 34. Rfd5 {[%emt 0:00:19]} Kh8 {[%emt 0:00:40]} 35. Rd6 {[%emt 0:00:29]} Nf4 {[%emt 0:00:36]} 36. Kh2 {[%emt 0:00:42]} Qc5 {[%emt 0:00:29]} 37. Qb6 {[%emt 0:00:42]} Qg5 {[%emt 0:00:13]} 38. g3 {[%emt 0:00:08]} Ng6 {[%emt 0:00:32]} 39. R6d5 {[%emt 0:00:22]} f5 {[%emt 0:00:16]} 40. Qc5 {[%emt 0:00:14]} Qh5 {[%emt 0:00:28]} 41. R1d2 {[%emt 0:00:16]} Rf8 {[%emt 0:00:30]} 42. Qd4 {[%emt 0:00:37]} Qf3 {[%emt 0:00:15]} 43. Rd6 {[%emt 0:00:11]} Kh7 {[%emt 0:00:09]} 44. Rxg6 {[%emt 0:00:04]} 1-0

[Event "15th Deltalift Open 2018"]
[Site "Halmstad"]
[Date "2018.05.10"]
[Round "3"]
[White "Akesson, Ralf"]
[Black "Fransson, Patrick"]
[Result "1-0"]
[ECO "A04"]
[WhiteElo "2392"]
[BlackElo "2129"]
[Annotator "NA"]
[PlyCount "75"]
[EventDate "2018.??.??"]
[EventType "swiss"]
[EventCountry "SWE"]
[SourceTitle "playchess.com"]
[Source "ChessBase"]
[SourceQuality "1"]
[TimeControl "1800+12"]

1. Nf3 {[%emt 0:00:00]} e6 {[%emt 0:00:35]} 2. c4 {[%emt 0:00:01]} b6 {[%emt 0:00:35]} 3. e4 {[%emt 0:00:26]} Bb7 {[%emt 0:00:09]} 4. Nc3 {[%emt 0:00:04]} c5 {[%emt 0:00:39]} 5. d4 {[%emt 0:00:34]} cxd4 {[%emt 0:00:34]} 6. Nxd4 {[%emt 0:00:03]} Nc6 {[%emt 0:00:28]} 7. Be3 {[%emt 0:00:49] LiveBook: 5 Games} Nf6 {[%emt 0:01:25]} 8. f3 {[%emt 0:01:20]} Be7 {[%emt 0:02:00] A31: Symmetrical English: 2 Nf3 Nf6 3 d4} (8... Bc5 9. Qd2 O-O 10. Nxc6 Bxc6 11. e5 Ne8 12. Bd3 Qh4+ 13. Qf2 Qxf2+ 14. Kxf2 f6 15. Bxc5 bxc5 16. Rhe1 {½-½ (27) Ponkratov,P (2589)-Kamsky,G (2637) St Petersburg 2016}) 9. Be2 {[%emt 0:00:21]} O-O {[%emt 0:00:14]} 10. O-O {[%emt 0:00:05]} d5 {[%emt 0:01:11]} 11. Nxc6 {[%emt 0:02:12]} Bxc6 {[%emt 0:00:01]} 12. cxd5 {[%emt 0:00:04]} exd5 {[%emt 0:00:21]} 13. e5 {[%emt 0:00:05]} Ne8 $146 {[%emt 0:00:21]} 14. f4 {[%emt 0:00:28]} Bc5 {[%emt 0:00:39]} 15. Bd4 {[%emt 0:01:24]} Nc7 {[%emt 0:00:29]} 16. Kh1 {[%emt 0:02:05]} Bxd4 {[%emt 0:04:02]} 17. Qxd4 {[%emt 0:00:03]} Ne6 {[%emt 0:00:01]} 18. Qg1 {[%emt 0:02:41]} d4 {[%emt 0:00:33]} 19. Nd1 {[%emt 0:01:58]} f6 {[%emt 0:04:12]} 20. Bg4 {[%emt 0:02:12]} f5 {[%emt 0:01:21]} 21. Bf3 {[%emt 0:00:03]} Be4 {[%emt 0:01:19]} 22. g3 {[%emt 0:03:27]} Rc8 {[%emt 0:01:01]} 23. Qg2 {[%emt 0:00:33]} Nc5 {[%emt 0:03:14]} 24. b4 {[%emt 0:01:27]} Bxf3 {[%emt 0:00:09]} 25. Qxf3 {[%emt 0:00:02]} Ne4 {[%emt 0:00:00]} 26. Qd3 {[%emt 0:01:44]} Qd5 {[%emt 0:00:14]} 27. Kg1 {[%emt 0:00:04]} Rc4 $2 {[%emt 0:00:19] [#]} (27... Rfd8 $17 {keeps the pressure on.} 28. Re1 Kh8) 28. Ne3 $1 {[%emt 0:00:17]} Rc3 {[%emt 0:00:45]} 29. Qxc3 {[%emt 0:00:49]} dxe3 {[%emt 0:00:02]} 30. Qxe3 {[%emt 0:00:39]} Rd8 {[%emt 0:00:01]} 31. Qb3 {[%emt 0:00:22]} Qxb3 {[%emt 0:00:37]} 32. axb3 {[%emt 0:00:03]} Rd2 {[%emt 0:00:30]} 33. Rxa7 {[%emt 0:00:46]} Nc3 {[%emt 0:00:09]} 34. Kh1 {[%emt 0:01:40]} Nd1 {[%emt 0:00:41]} 35. e6 {[%emt 0:00:55]} Kf8 {[%emt 0:00:05]} 36. Rd7 {[%emt 0:00:33]} Nf2+ $18 {[%emt 0:00:28]} 37. Kg2 {[%emt 0:00:11]} Nd3+ {[%emt 0:00:57]} 38. Kf3 {[%emt 0:00:14]} 1-0

[Event "15th Deltalift Open 2018"]
[Site "Halmstad"]
[Date "2018.05.10"]
[Round "3"]
[White "Arman, Deniz"]
[Black "Berggren Torell, Harald"]
[Result "0-1"]
[ECO "B09"]
[WhiteElo "2367"]
[BlackElo "2114"]
[Annotator "ChessBase"]
[PlyCount "62"]
[EventDate "2018.??.??"]
[EventType "swiss"]
[EventCountry "SWE"]
[SourceTitle "playchess.com"]
[Source "ChessBase"]
[SourceQuality "1"]
[TimeControl "1800+12"]

1. e4 {[%emt 0:00:00]} d6 {[%emt 0:00:01]} 2. d4 {[%emt 0:00:00]} Nf6 {[%emt 0:00:01]} 3. Nc3 {[%emt 0:00:00]} g6 {[%emt 0:00:01]} 4. f4 {[%emt 0:00:00]} Bg7 {[%emt 0:00:02]} 5. Nf3 {[%emt 0:00:19]} O-O {[%emt 0:00:02]} 6. e5 {[%emt 0:00:04]} Nfd7 {[%emt 0:00:01]} 7. Ne4 {[%emt 0:01:29]} c5 {[%emt 0:04:42]} 8. e6 {[%emt 0:09:53]} fxe6 {[%emt 0:01:07]} 9. Neg5 {[%emt 0:00:05]} Nf6 {[%emt 0:02:44]} 10. Bd3 {[%emt 0:03:06]} Nc6 {[%emt 0:01:26]} 11. dxc5 {[%emt 0:00:37]} dxc5 {[%emt 0:02:49]} 12. Qe2 {[%emt 0:01:23]} Qd6 {[%emt 0:02:11]} 13. c3 {[%emt 0:00:36]} Nd5 {[%emt 0:00:59]} 14. g3 {[%emt 0:08:27]} Nxc3 {[%emt 0:02:18]} 15. bxc3 {[%emt 0:02:00]} Bxc3+ {[%emt 0:00:01]} 16. Kf2 {[%emt 0:03:23]} Bxa1 {[%emt 0:00:05]} 17. Kg2 {[%emt 0:01:28]} e5 {[%emt 0:02:24]} 18. Bc4+ {[%emt 0:00:21]} Kg7 {[%emt 0:01:08]} 19. h4 {[%emt 0:00:23]} Bg4 {[%emt 0:05:21]} 20. h5 {[%emt 0:00:02]} Nd4 {[%emt 0:00:01]} 21. Qxe5+ {[%emt 0:00:06]} Qf6 {[%emt 0:01:50]} 22. h6+ {[%emt 0:00:13]} Kh8 {[%emt 0:00:03]} 23. Qxf6+ {[%emt 0:00:19]} exf6 {[%emt 0:00:18]} 24. Nxd4 {[%emt 0:00:06]} Bxd4 {[%emt 0:00:24]} 25. Nf7+ {[%emt 0:00:13]} Rxf7 {[%emt 0:00:04]} 26. Bxf7 {[%emt 0:00:01]} Bd7 {[%emt 0:02:06]} 27. Re1 {[%emt 0:00:01]} Bc6+ {[%emt 0:00:08]} 28. Kh3 {[%emt 0:00:46]} f5 {[%emt 0:00:09]} 29. Re7 {[%emt 0:00:05]} Rf8 {[%emt 0:00:18]} 30. Bd2 {[%emt 0:00:20]} Bf6 {[%emt 0:01:06]} 31. Bc3 Bxc3 0-1

[Event "15th Deltalift Open 2018"]
[Site "Halmstad"]
[Date "2018.05.10"]
[Round "3"]
[White "Malmstig, Erik"]
[Black "Troberg Eskola, Love"]
[Result "1-0"]
[ECO "A81"]
[WhiteElo "2339"]
[BlackElo "1993"]
[Annotator "NA"]
[PlyCount "35"]
[EventDate "2018.??.??"]
[EventType "swiss"]
[EventCountry "SWE"]
[SourceTitle "playchess.com"]
[Source "ChessBase"]
[SourceQuality "1"]
[TimeControl "1800+12"]

1. d4 {[%emt 0:00:00]} f5 {[%emt 0:00:01]} 2. g3 {[%emt 0:00:04]} Nf6 {[%emt 0:00:02]} 3. Bg2 {[%emt 0:00:08]} g6 {[%emt 0:00:01]} 4. c4 {[%emt 0:00:08]} Bg7 {[%emt 0:00:02]} 5. Nc3 {[%emt 0:00:08] LiveBook: 1490 Games} O-O {[%emt 0:00:04]} 6. Nh3 {[%emt 0:00:08]} e6 {[%emt 0:01:45]} 7. O-O {[%emt 0:00:29]} d6 {[%emt 0:00:03]} 8. Qb3 {[%emt 0:01:04] A86: Dutch Defence: Leningrad System: Unusual lines and 5 Nh3} (8. b3 c6 9. Ba3 Qa5 10. Qc1 Rd8 11. Rd1 Qc7 12. d5 Qe7 13. dxe6 Bxe6 14. Qf4 Nh5 15. Qe3 Na6 {½-½ (31) Delchev,A (2604)-Vallejo Pons,F (2686) Linares 2015}) 8... c6 {[%emt 0:02:45]} 9. Nf4 {[%emt 0:01:35]} Qe7 {[%emt 0:02:00]} 10. d5 {[%emt 0:03:14]} e5 $146 {[%emt 0:00:42]} ({Predecessor:} 10... Kh8 11. dxe6 Na6 12. Qc2 Bxe6 13. Nxe6 Qxe6 {0-1 (47) Kacprzak,R (1906)-Lach,P (2148) Polanica Zdroj 2009}) 11. dxc6 {[%emt 0:03:26]} Nxc6 {[%emt 0:01:25]} (11... bxc6 $5 {[%cal Re5f4]} 12. Nfd5 Nxd5 13. Nxd5 (13. cxd5 c5 $15) 13... Qf7 $11) 12. Nfd5 {[%emt 0:01:32]} Qf7 {[%emt 0:04:50]} 13. Nb5 {[%emt 0:02:19]} Ne8 {[%emt 0:02:40]} 14. Qa3 {[%emt 0:01:40]} Nd4 {[%emt 0:01:46]} 15. Nxd4 {[%emt 0:01:59]} exd4 {[%emt 0:00:01]} 16. Nb6 {[%emt 0:00:32]} Rb8 $2 {[%emt 0:01:27]} (16... axb6 17. Qxa8 Nf6) 17. Nxc8 {[%emt 0:00:28]} Rxc8 $18 {[%emt 0:00:01]} (17... Qd7 $142 18. Nxa7 Ra8) 18. Bd5 {[%emt 0:00:08]} 1-0